Cogmind - Beta 13 X3 @@@ ROGUE MODE // 2024.02.21 @ 22:42:59 Player: Minty Result: Destroyed by K2-JWV(R) with Subdweller Machine Gun Performance ------------- Evolutions (0) 0 Regions Visited (2) 400 Robots Destroyed (7) 35 Value Destroyed (257) 257 Prototype IDs (0) 0 Alien Tech Used (0) 0 Bonus (0) 0 TOTAL SCORE: 692 Bonus ------- None Cogmind --------- Core Integrity 0/250 Matter 270/300 Energy 160/160 System Corruption 0% Temperature Cool (0) Movement Treading (160) Location -10/Subcaves Parts ------- > --- POWER (1) -------- Light Nuclear Core > --- PROPULSION (2) --- Light Treads Light Treads > --- UTILITY (2) ------ Small Storage Unit Visual Processing Unit > --- WEAPON (2) ------- Beam Cannon > --- INVENTORY (8) ---- Wheel EM Pulse Gun Light Assault Rifle Light Assault Rifle Mining Laser Peak State ------------ > --- POWER ------------ Light Nuclear Core > --- PROPULSION ------- Aluminum Leg Aluminum Leg > --- UTILITY ---------- Small Storage Unit Visual Processing Unit > --- WEAPON ----------- Particle Gun Light Assault Rifle > --- INVENTORY -------- Light Ion Engine Light Treads Light Treads Wheel EM Pulse Gun Beam Cannon Light Assault Rifle Mining Laser [Rating: 11] Favorites ----------- Power Light Ion Engine Engine Light Ion Engine Power Core Light Nuclear Core Propulsion Aluminum Leg Treads Light Treads Leg Aluminum Leg Utility Small Storage Unit Storage Small Storage Unit Processor Visual Processing Unit Weapon Light Assault Rifle Energy Gun Particle Gun Energy Cannon Beam Cannon Ballistic Gun Light Assault Rifle Special Weapon Mining Laser Build | -11 -10 -10 ------- Run | Yrd Mat Sub Slots Evolved . | . . . Power . | . . . Propulsion . | . . . Utility . | . . . Weapon . | . . . Parts Attached 13 | . 7 6 Power 4 | . 3 1 Engine 2 | . 2 . Core 2 | . 1 1 Reactor . | . . . Propulsion 2 | . . 2 Treads 2 | . . 2 Leg . | . . . Wheel . | . . . Hover . | . . . Flight . | . . . Utility 1 | . 1 . Device . | . . . Storage . | . . . Processor 1 | . 1 . Hackware . | . . . Protection . | . . . Artifact . | . . . Weapon 6 | . 3 3 Energy Gun 3 | . 1 2 Energy Cannon 1 | . 1 . Ballistic Gun . | . . . Ballistic Cannon . | . . . Launcher . | . . . Special Weapon 2 | . 1 1 Impact Weapon . | . . . Slashing Weapon . | . . . Piercing Weapon . | . . . Special Melee Weapon . | . . . Unidentified Prototypes . | . . . Parts Lost 5 | . 1 4 Power 1 | . . 1 Propulsion 2 | . . 2 Utility . | . . . Weapon 2 | . 1 1 Highest Loss Streak 4 | . 1 4 To Critical Strikes . | . . . Average Slot Usage (%) 92 | . 91 93 Engine 12 | . 14 9 Treads 1 | . . 4 Leg 25 | . 28 22 Storage 14 | . 14 14 Processor 10 | . 8 14 Energy Gun 4 | . 2 8 Energy Cannon 5 | . . 14 Ballistic Gun 13 | . 21 . Special Weapon 1 | . 1 2 Naked Turns . | . . . Heaviest Build 14 | 11 14 14 Greatest Support 40 | 20 20 40 Greatest Overweight (x) . | . . . Average Overweight (x) . | . . . Largest Inventory Capacity 8 | . 8 8 Average Capacity 8 | . 8 8 Most Carried 8 | . 8 8 Average Carried 7 | . 7 7 Final Capacity 8 | 8 8 8 Final Carried 8 | 6 8 5 Class Distribution -------------------- 100% | Mutant Dominant Class ---------------- Mutant | -10/Materials Mutant | -10/Subcaves Resources | -11 -10 -10 ----------- Run | Yrd Mat Sub Matter Collected 342 | 144 125 73 Remotely . | . . . Salvage Created 299 | . 125 174 Parts 11 | . 6 5 Haulers Intercepted . | . . . Recyclers Shooed . | . . . Parts Field Recycled . | . . . Retrieved Matter . | . . . Parts Self-Destructed . | . . . Prevented . | . . . Kills | -11 -10 -10 ------- Run | Yrd Mat Sub Combat Hostiles Destroyed 6 | . 2 4 Guns 3 | . 2 1 Cannons 3 | . . 3 Classes Destroyed 3 | . 2 1 Watcher 1 | . 1 . Grunt 2 | . 2 . Subdweller 4 | . . 4 Best Kill Streak 2 | . 2 2 Combat Bots Only 2 | . 2 2 Max Kills in Single Turn 1 | . 1 1 Gunslinging . | . . . Exploded . | . . . Melee . | . . . Uniques/NPCs Destroyed . | . . . Combat | -11 -10 -10 -------- Run | Yrd Mat Sub Hostile Shots Fired 63 | . 19 44 Missed 13 | . 1 12 Damage Taken 1021 | . 253 768 Core 258 | . . 258 Absorbed by Shields . | . . . Core Remaining (%) 100 | 100 . . Volleys Fired 53 | . 25 28 Largest 2 | . 2 2 Hottest 125 | . 100 125 Shots Fired 79 | . 39 40 Gun 44 | . 32 12 Cannon 27 | . . 27 Launcher . | . . . Special 8 | . 7 1 Kinetic 32 | . 32 . Thermal 47 | . 7 40 Explosive . | . . . Electromagnetic . | . . . Robot Hit Streak 8 | . 8 7 Robot Miss Streak 5 | . 5 3 Penetration Max . | . . . Secondary Targets 1 | . 1 . Max Gunslinging Chain 1 | . 1 . Shots Hit Robots 51 | . 21 30 Core Hits 17 | . 8 9 Critical Kills . | . . . Critical Parts Destroyed . | . . . Critical Strikes . | . . . Melee Attacks . | . . . Impact . | . . . Slashing . | . . . Piercing . | . . . Sneak Attacks . | . . . Combat Hostiles . | . . . Follow-up Attacks . | . . . Damage Inflicted 685 | . 228 457 Guns 325 | . 204 121 Cannons 336 | . . 336 Explosions . | . . . Melee . | . . . Ramming . | . . . Kinetic 204 | . 204 . Thermal 481 | . 24 457 Explosive . | . . . Electromagnetic . | . . . Impact . | . . . Slashing . | . . . Piercing . | . . . Highest Corruption . | . . . Average Corruption . | . . . Corruption Purged . | . . . Corruption Blocked . | . . . Overload Shots . | . . . Overflow Damage 2 | . 2 . Projectiles 2 | . 2 . Explosions . | . . . Melee . | . . . Knockbacks . | . . . Impact . | . . . Kinetic . | . . . Secondary . | . . . Self-Inflicted Damage . | . . . Shots . | . . . Rammed . | . . . Targets Rammed . | . . . Kicked . | . . . Crushed . | . . . Highest Temperature 102 | . 102 51 Average Temperature 35 | . 44 20 Received Heat Transfer 207 | . 144 63 Siege Activations . | . . . Robots Corrupted . | . . . Combat Hostiles . | . . . Parts Fried . | . . . Impact Corruptions . | . . . Robots Melted . | . . . Combat Hostiles . | . . . Parts Melted 2 | . . 2 Heat Transferred 1049 | . 50 999 Parts Sabotaged . | . . . Parts Stolen . | . . . Parts Stripped . | . . . Power Chain Reactions . | . . . Alert | -11 -10 -10 ------- Run | Yrd Mat Sub Peak Influence 93 | . 93 . Initial . | . . . Average 43 | . 43 . Maximum Alert Level . | . . . Low Security (%) 100 | . 100 . Level 1 . | . . . Level 2 . | . . . Level 3 . | . . . Level 4 . | . . . Level 5 . | . . . High Security . | . . . Max Security . | . . . Squads Dispatched 1 | . 1 . Investigation . | . . . Extermination . | . . . Reinforcement 1 | . 1 . Assault . | . . . Garrison . | . . . Intercept . | . . . Searches Triggered . | . . . Construction Impeded . | . . . Haulers Reinforced . | . . . Active Scanning Responses . | . . . Cargo Convoy Interrupts . | . . . Stealth | -11 -10 -10 --------- Run | Yrd Mat Sub Distress Signals . | . . . Communications Jammed . | . . . Distress Signals . | . . . Times Spotted 13 | . 6 7 Peak Tracking Total 3 | . 3 3 Tactical Retreats . | . . . Traps | -11 -10 -10 ------- Run | Yrd Mat Sub Traps Triggered . | . . . Indirectly . | . . . Trap Hack Attempts . | . . . Triggered . | . . . Disarmed . | . . . Reprogrammed . | . . . Reused . | . . . Traps Extracted . | . . . Installed . | . . . Triggered . | . . . Machines | -11 -10 -10 ---------- Run | Yrd Mat Sub Machines Disabled . | . . . Max in Single Turn . | . . . Machines Repaired . | . . . Machines Dismantled . | . . . Machines Sabotaged . | . . . Overloaded Fab Kills . | . . . Hacking | -11 -10 -10 --------- Run | Yrd Mat Sub Machines Accessed 1 | . 1 . Terminals . | . . . Fabricators . | . . . Repair Stations . | . . . Recycling Units 1 | . 1 . Scanalyzers . | . . . Garrison Access . | . . . Total Hacks 4 | . 4 . Successful 3 | . 3 . Failed 1 | . 1 . Catastrophic . | . . . Database Lockouts . | . . . Manual . | . . . Terminals . | . . . Fabricators . | . . . Repair Stations . | . . . Recycling Units 4 | . 4 . Scanalyzers . | . . . Garrison Access . | . . . Terminal Hacks . | . . . Fabricator Hacks . | . . . Repair Station Hacks . | . . . Recycling Unit Hacks 3 | . 3 . Process 1 | . 1 . Report Inventory 1 | . 1 . Retrieve Matter 1 | . 1 . Scanalyzer . | . . . Garrison Access Hacks . | . . . Unauthorized Hacks . | . . . Terminals . | . . . Fabricators . | . . . Repair Stations . | . . . Recycling Units . | . . . Scanalyzers . | . . . Garrison Access . | . . . Data Cores Recovered . | . . . Used . | . . . Hacking Detections 1 | . 1 . Full Trace Events . | . . . Feedback Events . | . . . Feedback Blocked . | . . . Robot Schematics Acquired . | . . . Robots Built . | . . . Authchips . | . . . Time . | . . . Total Robot Build Rating . | . . . Part Schematics Acquired . | . . . Parts Built . | . . . Authchips . | . . . Time . | . . . Total Part Build Rating . | . . . Parts Repaired . | . . . Time . | . . . Parts Recycled . | . . . Recycled Matter 13 | . 13 . Retrieved Matter 13 | . 13 . Retrieved Components . | . . . Parts Scanalyzed . | . . . Part Schematics Acquired . | . . . Parts Damaged . | . . . Bothacking | -11 -10 -10 ------------ Run | Yrd Mat Sub Used RIF Installer . | . . . Robots Hacked . | . . . Non-combat . | . . . Combat . | . . . Robot Hacks Applied . | . . . Relay Couplers Released . | . . . Fabnet Peak Effective % . | . . . Robots Rewired . | . . . Allies Hacked . | . . . Hacks Repelled . | . . . Allies | -11 -10 -10 -------- Run | Yrd Mat Sub Total Allies . | . . . Largest Group . | . . . Highest-Rated Group . | . . . Highest-Rated Ally . | . . . Total Orders . | . . . Ally Attacks . | . . . Total Damage . | . . . Kills . | . . . Allies Corrupted . | . . . Allies Melted . | . . . Intel | -11 -10 -10 ------- Run | Yrd Mat Sub Robot Analysis Total . | . . . Derelict Logs Recovered . | . . . Drone Launches . | . . . Drone Recoveries . | . . . Exploration | -11 -10 -10 ------------- Run | Yrd Mat Sub Turns Passed 459 | . 296 163 Spaces Moved 230 | 1 163 66 Core . | . . . Treads 12 | . . 12 Legs 218 | 1 163 54 Wheels . | . . . Hover . | . . . Flight . | . . . Fastest Speed 120 | 120 120 120 Average Speed 122 | 120 120 127 Slowest Speed 160 | 120 120 160 Overloaded Moves . | . . . Propulsion Burnouts . | . . . Robots Hopped . | . . . Cave-ins Triggered . | . . . Exploration Rate (%) 12 | 2 26 8 Regions Visited 2 Branch Regions 1 Pre-discovered Areas . | . . . Known Exits Taken . | . . . Unknown Exits Taken 2 | 1 1 . Scrap Searched 1 | . . 1 Spaces Dug . | . . . Terrain Destroyed 1 | . 1 . Melee . | . . . Projectile 1 | . 1 . AOE . | . . . Terrain Rammed . | . . . Walls Destroyed . | . . . Machines Disabled . | . . . Actions | -11 -10 -10 --------- Run | Yrd Mat Sub Total 314 | . 212 102 Wait 13 | . 11 2 Move 228 | . 162 66 Hop . | . . . Pick Up 4 | . 4 . Fast Attach 2 | . 2 . Attach 3 | . . 3 Detach . | . . . Swap 8 | . 5 3 Drop 3 | . 3 . Fire 53 | . 25 28 Melee . | . . . Ram . | . . . Kick . | . . . Crush . | . . . Escape Stasis . | . . . Rewire . | . . . Trap . | . . . Miscellaneous . | . . . Route ------- -11/Scrapyard -10/Materials (discovered 3 exits: [*Mat] / [*Min] / [*Sub]) -10/Subcaves History --------- Turn | Location | Event 1 | -11/Scrapyard | Discovered new exit (range 0) 1 | -11/Scrapyard | Entered Materials 25 | -10/Materials | Discovered new exit (range 6) 204 | -10/Materials | Discovered new exit (range 11) 291 | -10/Materials | Discovered new exit (range 3) 297 | -10/Materials | Entered Subcaves 317 | -10/Subcaves | Build established: Mutant 426 | -10/Subcaves | Ambushed by Subdweller buried in earth 426 | -10/Subcaves | Ambushed by Subdweller buried in earth 427 | -10/Subcaves | Core integrity fell below 50% 442 | -10/Subcaves | Core integrity fell below 20% 460 | -10/Subcaves | Destroyed by K2-JWV(R) with Subdweller Machine Gun Last Messages --------------- GOAL=ESCAPE 00335_ Sub. Machine Gun melted. 00335_ 64-U1U(R) destroyed. 00351_ VN-H5V(R) destroyed. 00362_ KQ-U5S(u) builds Twisted Machinery. 00376_ Searching scrap... 00376_ Found Flamer. 00376_ Found 33 Matter. 00377_ Acquired 33 matter. 00382_ KQ-U5S(u) builds Twisted Machinery. 00401_ 3X-GV4(R) destroyed. 00404_ Acquired 40 matter. 00416_ Lgt. Ion Engine destroyed. 00419_ Disposable Heat Sink melted. 00419_ 6R-Q7T(R) destroyed. 00427_ K2-JWV(R): "FREEEEDUMB!" 00427_ D0-5V3(R): "SLEEPOVER!" 00427_ Aluminum Leg destroyed. 00429_ Particle Gun destroyed. 00431_ Aluminum Leg destroyed. Map ----- +----------------------------------------------------+ | ????????????????????????????????????????# #?? | | ????????????????????????????????????????# ##? | | ????????????????????????????????????????# ## | | ????????????????????????????????????????# # | | ????????????????????????????????????????## | | ?????????????????????????????????????????### | | ????????????????????????????????????????### ## | | ???????????????????????????????????????## # | | ???????????????????????????????????????# | | ?????????????????????????????#####?????### ## | | ?????????????????????????????# ###?##### ####? | | ????????????????????????????## ### ## #???? | | ??????????????????????#####?# ##&%[ ##???? | | ??????????????????????# ## * ##????? | | ?????????????????????## ##?????? | | ?????????????????????# ## ###??????? | | ?????????????????????# #######????????? | | ?????????????????????## ##??????? #"#???? | | ???????????????# ###?# ##??### " ??? | | ??????????????#"""#"## " " ## " ??? | | ???????????????# """""" " " % "#???? | | ???????????????# "#"""" #### ## ! "#???? | | ????????????####"""""" #?### ##### #??? | | ??????????? """""" "#######R ##??????# "#??? | | ?????????????"""""" "### R #????????????? | | ????????"""" ""# ## ## @ ! #???????????? | | ???????? # " "" ## &%* ??????? | | ???????? "" #? & #????? | | ?????????# | ""????? | | ?????????## ## # ### "" ????? | | ??????????### ?#### ### #??# ##?????? | | ????????????## ?????####?## ####???###??????? | | ?????????????## ##????????????####???????????????? | | ??????????????##?????????????????????????????????? | | ?????????????????????????????????????????????????? | | ?????????????????????????????????????????????????? | | ?????????????????????????????????????????????????? | | ?????????????????????????????????????????????????? | | ?????????????????????????????????????????????????? | | ?????????????????????????????????????????????????? | | ?????????????????????????????????????????????????? | | ?????????????????????????????????????????????????? | | ?????????????????????????????????????????????????? | | ?????????????????????????????????????????????????? | | ?????????????????????????????????????????????????? | | ?????????????????????????????????????????????????? | | ?????????????????????????????????????????????????? | | ?????????????????????????????????????????????????? | | ?????????????????????????????????????????????????? | | | +----------------------------------------------------+ Best States ------------- Heat Dissipation 25 Energy Generation 14 Energy Capacity 160 Matter Stores 300 Matter Capacity 300 Sight Range 18 Terrain Scan Density 10 Evasion (%) 55 Recoil Reduction 2 Item Schematics ----------------- None Robot Schematics ------------------ None Fabricated ------------ Nothing Alien Tech Used ----------------- None Achievements -------------- None Challenges ------------ None Game ------ Seed AbsorptionAssaultLaser Manual? 1 Play Time 00:03:14 Cumulative 668.4 hours Start 2024.02.21 @ 22:40:43 End 2024.02.21 @ 22:42:59 Sessions 1 Manual Loads 0 Difficulty Rogue Special Mode None Game No. 677 Rogue 402 Adventurer 123 Explorer 152 Win Type - Total 25 Types 19/0/4/1/0/0/0/1/0 Lore% 80 Gallery% 91 Achievement% 76 Wizard Run 0 Options --------- Layout 0 ASCII 0 Keyboard 1 Movement Numpad Keybinds 0 Fullscreen 2 Font 18/SmallcapsGlow Map View 76x50 Zoom Use 0% Tactical HUD 1 Map Filters NONE Filters NONE Steam 1 RUN: 5811518f-3350-497c-b9ed-0c01a06806c8